fUSD/lending_fUSD_20260401
["ID","MTS","AMOUNT","RATE_DAILY","PERIOD"]
[419237866,1775029839860,-500.0,0.00013698,2]
[419237867,1775029839869,-504.62510561,0.00013698,2]
[419237868,1775029839878,-500.0,0.00013698,2]
[419237869,1775029839889,-500.0,0.00013698,2]
[419237870,1775029839898,-500.0,0.00013698,2]
[419237871,1775029839909,-500.0,0.00013698,2]
[419237872,1775029839918,-500.0,0.00013698,2]
[419237873,1775029839927,-500.0,0.00013698,2]
[419237874,1775029839935,-500.0,0.00013698,2]
[419237875,1775029839944,-500.0,0.00013698,2]
[419237876,1775029839953,-500.0,0.00013698,2]
[419237877,1775029839962,-500.0,0.00013698,2]
[419237878,1775029839971,-500.0,0.00013698,2]
[419237879,1775029839980,-500.0,0.00013698,2]
[419237880,1775029839991,-500.0,0.00013698,2]
[419237881,1775029840001,-500.0,0.00013698,2]
[419237882,1775029840010,-500.0,0.00013698,2]
[419237883,1775029840020,-500.0,0.00013698,2]
[419237884,1775029840029,-521.10158946,0.00013698,2]
[419237885,1775029840040,-500.0,0.00013698,2]
[419237886,1775029840050,-500.0,0.00013698,2]
[419237887,1775029840059,-500.0,0.00013698,2]
[419237888,1775029840068,-500.0,0.00013698,2]
[419237889,1775029840077,-618.03329484,0.00013698,2]
[419237890,1775029840086,-500.0,0.00013698,2]
[419237891,1775029840096,-500.0,0.00013698,2]
[419237892,1775029840105,-500.0,0.00013698,2]
[419237893,1775029840115,-500.0,0.00013698,2]
[419237894,1775029840124,-500.0,0.00013698,2]
[419237895,1775029840133,-500.0,0.00013698,2]
[419237896,1775029840143,-500.0,0.00013698,2]
[419237897,1775029840153,-489.51900798,0.00013698,2]
[419237898,1775029840163,-500.0,0.00013698,2]
[419237899,1775029840173,-500.0,0.00013698,2]
[419237900,1775029840182,-500.0,0.00013698,2]
[419237901,1775029840192,-500.0,0.00013698,2]
[419237902,1775029840201,-502.04948952,0.00013698,2]
[419237903,1775029840210,-500.0,0.00013698,2]
[419237904,1775029840219,-500.0,0.00013698,2]
[419237905,1775029840227,-500.0,0.00013698,2]
[419237906,1775029840237,-500.0,0.00013698,2]
[419237907,1775029840247,-500.0,0.00013698,2]
[419237908,1775029840256,-500.0,0.00013698,2]
[419237909,1775029840267,-567.75072671,0.00013698,2]
[419237910,1775029840276,-500.0,0.00013698,2]
[419237911,1775029840285,-500.0,0.00013698,2]
[419237912,1775029840295,-500.0,0.00013698,2]
[419237913,1775029840304,-500.0,0.00013698,2]
[419237914,1775029840313,-500.0,0.00013698,2]
[419237915,1775029840323,-500.0,0.00013698,2]
[419237916,1775029840333,-500.0,0.00013698,2]
[419237917,1775029840343,-500.0,0.00013698,2]
[419237918,1775029840352,-500.0,0.00013698,2]
[419237919,1775029840362,-500.0,0.00013698,2]
[419237920,1775029840373,-500.0,0.00013698,2]
[419237921,1775029840383,-500.0,0.00013698,2]
[419237922,1775029840393,-376.79746068,0.00013698,2]
[419237923,1775029840402,-500.0,0.00013698,2]
[419237924,1775029840411,-500.0,0.00013698,2]
[419237925,1775029840421,-500.0,0.00013698,2]
[419237926,1775029840431,-500.0,0.00013698,2]
[419237927,1775029840441,-500.0,0.00013698,2]
[419237928,1775029840451,-500.0,0.00013698,2]
[419237929,1775029840460,-500.0,0.00013698,2]
[419237930,1775029840470,-500.0,0.00013698,2]
[419237931,1775029840479,-500.0,0.00013698,2]
[419237932,1775029840489,-500.0,0.00013698,2]
[419237933,1775029840498,-500.0,0.00013698,2]
[419237934,1775029840510,-500.0,0.00013698,2]
[419237935,1775029840519,-500.0,0.00013698,2]
[419237936,1775029840531,-500.0,0.00013698,2]
[419237937,1775029840541,-500.0,0.00013698,2]
[419237938,1775029840551,-500.0,0.00013698,2]
[419237939,1775029840560,-500.0,0.00013698,2]
[419237940,1775029840572,-500.0,0.00013698,2]
[419237941,1775029840581,-500.0,0.00013698,2]
[419237942,1775029840591,-500.0,0.00013698,2]
[419237943,1775029840600,-500.0,0.00013698,2]
[419237944,1775029840610,-500.0,0.00013698,2]
[419237945,1775029840621,-500.0,0.00013698,2]
[419237946,1775029840631,-500.0,0.00013698,2]
[419237947,1775029840640,-500.0,0.00013698,2]
[419237948,1775029840650,-500.0,0.00013698,2]
[419237949,1775029840659,-500.0,0.00013698,2]
[419237950,1775029840668,-500.0,0.00013698,2]
[419237951,1775029840678,-500.0,0.00013698,2]
[419237952,1775029840687,-500.0,0.00013698,2]
[419237953,1775029840696,-500.0,0.00013698,2]
[419237954,1775029840705,-500.0,0.00013698,2]
[419237955,1775029840714,-500.0,0.00013698,2]
[419237956,1775029840723,-500.0,0.00013698,2]
[419237957,1775029840732,-500.0,0.00013698,2]
[419237958,1775029840740,-500.0,0.00013698,2]
[419237959,1775029840750,-500.0,0.00013698,2]
[419237960,1775029840759,-500.0,0.00013698,2]
[419237961,1775029840768,-500.0,0.00013698,2]
[419237962,1775029840777,-500.0,0.00013698,2]
[419237963,1775029840786,-500.0,0.00013698,2]
[419237964,1775029840795,-212.34445911,0.00013698,2]
[419237965,1775029840804,-500.0,0.00013698,2]
[419237966,1775029840813,-500.0,0.00013698,2]
[419237967,1775029840822,-500.0,0.00013698,2]
[419237968,1775029840831,-500.0,0.00013698,2]
[419237969,1775029840840,-500.0,0.00013698,2]
[419237970,1775029840849,-500.0,0.00013698,2]
[419237971,1775029840858,-500.0,0.00013698,2]
[419237972,1775029840867,-500.0,0.00013698,2]
[419237973,1775029840876,-500.0,0.00013698,2]
[419237974,1775029840886,-500.0,0.00013698,2]
[419237975,1775029840894,-500.0,0.00013698,2]
[419237976,1775029840903,-500.0,0.00013698,2]
[419237977,1775029840912,-500.0,0.00013698,2]
[419237978,1775029840921,-500.0,0.00013698,2]
[419237979,1775029840930,-500.0,0.00013698,2]
[419237980,1775029840939,-500.0,0.00013698,2]
[419237981,1775029840948,-500.0,0.00013698,2]
[419237982,1775029840957,-500.0,0.00013698,2]
[419237983,1775029840966,-500.0,0.00013698,2]
[419237984,1775029840975,-500.0,0.00013698,2]
[419237985,1775029840984,-500.0,0.00013698,2]
[419237986,1775029840993,-500.0,0.00013698,2]
[419237987,1775029841002,-500.0,0.00013698,2]
[419237988,1775029841011,-500.0,0.00013698,2]
[419237989,1775029841020,-500.0,0.00013698,2]
[419237990,1775029841030,-445.36727502,0.00013698,2]
[419237991,1775029841038,-500.0,0.00013698,2]
[419237992,1775029841047,-500.0,0.00013698,2]
[419237993,1775029841056,-500.0,0.00013698,2]
[419237994,1775029841066,-500.0,0.00013698,2]
[419237995,1775029841075,-500.0,0.00013698,2]
[419237996,1775029841084,-541.27886182,0.00013698,2]
[419237997,1775029841093,-500.0,0.00013698,2]
[419237998,1775029841103,-500.0,0.00013698,2]
[419237999,1775029841112,-500.0,0.00013698,2]
[419238000,1775029841121,-500.0,0.00013698,2]
[419238001,1775029841130,-500.0,0.00013698,2]
[419238002,1775029841139,-500.0,0.00013698,2]
[419238003,1775029841148,-500.0,0.00013698,2]
[419238004,1775029841157,-500.0,0.00013698,2]
[419238005,1775029841167,-500.0,0.00013698,2]
[419238006,1775029841176,-500.0,0.00013698,2]
[419238007,1775029841185,-500.0,0.00013698,2]
[419238008,1775029841194,-500.0,0.00013698,2]
[419238009,1775029841203,-500.0,0.00013698,2]
[419238010,1775029841212,-500.0,0.00013698,2]
[419238011,1775029841222,-500.0,0.00013698,2]
[419238012,1775029841231,-500.0,0.00013698,2]
[419238013,1775029841240,-500.0,0.00013698,2]
[419238014,1775029841250,-500.0,0.00013698,2]
[419238015,1775029841259,-500.0,0.00013698,2]
[419238016,1775029841268,-500.0,0.00013698,2]
[419238017,1775029841277,-500.0,0.00013698,2]
[419238018,1775029841287,-183.58723642,0.00013698,2]
[419238019,1775029841296,-500.0,0.00013698,2]
[419238020,1775029841306,-500.0,0.00013698,2]
[419238021,1775029841315,-500.0,0.00013698,2]
[419238022,1775029841325,-500.0,0.00013698,2]
[419238023,1775029841335,-500.0,0.00013698,2]
[419238024,1775029841344,-500.0,0.00013698,2]
[419238025,1775029841354,-500.0,0.00013698,2]
[419238026,1775029841363,-500.0,0.00013698,2]
[419238027,1775029841372,-500.0,0.00013698,2]
[419238028,1775029841381,-500.0,0.00013698,2]
[419238029,1775029841390,-500.0,0.00013698,2]
[419238030,1775029841399,-500.0,0.00013698,2]
[419238031,1775029841408,-495.0,0.00013698,2]
[419238032,1775029841416,-500.0,0.00013698,2]
[419238033,1775029841426,-500.0,0.00013698,2]
[419238034,1775029841435,-500.0,0.00013698,2]
[419238035,1775029841443,-500.0,0.00013698,2]
[419238036,1775029841453,-500.0,0.00013698,2]
[419238037,1775029841462,-500.0,0.00013698,2]
[419238038,1775029841471,-500.0,0.00013698,2]
[419238039,1775029841480,-500.0,0.00013698,2]
[419238040,1775029841489,-500.0,0.00013698,2]
[419238041,1775029841498,-500.0,0.00013698,2]
[419238042,1775029841507,-500.0,0.00013698,2]
[419238043,1775029841516,-500.0,0.00013698,2]
[419238044,1775029841525,-500.0,0.00013698,2]
[419238045,1775029841534,-500.0,0.00013698,2]
[419238046,1775029841543,-500.0,0.00013698,2]
[419238047,1775029841553,-150.0,0.00013699,2]
[419238048,1775029841563,-150.0,0.00013699,2]
[419238049,1775029841572,-150.0,0.00013699,2]
[419238050,1775029841581,-150.0,0.00013699,2]
[419238051,1775029841593,-150.0,0.00013699,2]
[419238052,1775029841602,-150.0,0.00013699,2]
[419238053,1775029841612,-2527.09,0.00013699,2]
[419238054,1775029841620,-158.5,0.00013699,2]
[419238055,1775029841629,-792.51,0.00013699,2]
[419238056,1775029841638,-200.0,0.00013699,2]
[419238057,1775029841647,-500.0,0.00013699,2]
[419238058,1775029841656,-500.0,0.00013699,2]
[419238059,1775029841665,-500.0,0.00013699,2]
[419238060,1775029841675,-500.0,0.00013699,2]
[419238061,1775029841684,-500.37557038,0.00013699,2]
[419238062,1775029841695,-500.0,0.00013699,2]
[419238063,1775029841704,-500.0,0.00013699,2]
[419238064,1775029841713,-500.41125099,0.00013699,2]
[419238065,1775029841722,-500.0,0.00013699,2]
[419238066,1775029841731,-500.0,0.00013699,2]
[419238067,1775029841740,-500.0,0.00013699,2]
[419238068,1775029841750,-500.0,0.00013699,2]
[419238069,1775029841759,-500.0,0.00013699,2]
[419238070,1775029841768,-500.0,0.00013699,2]
[419238071,1775029841778,-500.0,0.00013699,2]
[419238072,1775029841787,-500.0,0.00013699,2]
[419238073,1775029841797,-627.00850068,0.00013699,2]
[419238074,1775029841806,-500.0,0.00013699,2]
[419238075,1775029841815,-500.0,0.00013699,2]
[419238076,1775029841824,-500.0,0.00013699,2]
[419238077,1775029841834,-330.62596809,0.00013699,2]
[419238078,1775029841844,-500.0,0.00013699,2]
[419238079,1775029841853,-342.86927072,0.00013699,2]
[419238080,1775029841862,-312.57026801,0.00013699,2]
[419238081,1775029841871,-500.0,0.00013699,2]
[419238082,1775029841880,-500.0,0.00013699,2]
[419238083,1775029841888,-500.0,0.00013699,2]
[419238084,1775029841898,-500.0,0.00013699,2]
[419238085,1775029841907,-367.40868416,0.00013699,2]
[419238086,1775029841916,-500.0,0.00013699,2]
[419238087,1775029841925,-881.14,0.00013849,2]
[419238088,1775029841934,-495.62,0.00013957,2]
[419238089,1775029841943,-150.0,0.00013973,2]
[419238090,1775029841952,-150.0,0.00013973,2]
[419238091,1775029841961,-150.0,0.00013973,2]
[419238092,1775029841970,-150.0,0.00013973,2]
[419238093,1775029841979,-150.0,0.00013973,2]
[419238094,1775029841988,-150.0,0.00013973,2]
[419238095,1775029841997,-28704.32350983,0.00014006,2]
[419238096,1775029842007,-289.97620277,0.00014095,2]
[419238097,1775029842015,-500.0,0.00014095,2]
[419238098,1775029842024,-881.14,0.00014123,2]
[419238099,1775029842034,-495.62,0.00014231,2]
[419238100,1775029842043,-150.0,0.00014247,2]
[419238101,1775029842052,-150.0,0.00014247,2]
[419238102,1775029842062,-150.0,0.00014247,2]
[419238103,1775029842072,-150.0,0.00014247,2]
[419238104,1775029842081,-1000.0,0.00014247,2]
[419238105,1775029842091,-1000.0,0.00014247,2]
[419238106,1775029842101,-500.0,0.00014335,2]
[419238107,1775029842110,-500.73578888,0.00014335,2]
[419238108,1775029842119,-2527.09,0.00014384,2]
[419238109,1775029842128,-881.14,0.00014397,2]
[419238110,1775029842137,-495.62,0.00014505,2]
[419238111,1775029842146,-166.04742291,0.00014549,2]
[419238112,1775029842155,-881.14,0.00014671,2]
[419238113,1775029842164,-495.62,0.00014779,2]
[419238114,1775029842173,-1579.04808524,0.00014795,2]
[419238115,1775029842183,-1500.0,0.00014795,2]
[419238116,1775029842193,-409.0917,0.000148,22]
[419238117,1775029842202,-848.0,0.00014887,2]
[419238118,1775029842211,-881.14,0.00014945,2]
[419238119,1775029842221,-6621.0,0.0001495,2]
[419238120,1775029842230,-10000.0,0.00015,7]
[419238121,1775029842239,-10000.0,0.00015,7]
[419238122,1775029842248,-10000.0,0.00015,7]
[419238123,1775029842257,-2069.0,0.00015,7]
[419238124,1775029842266,-495.62,0.00015053,2]
[419238125,1775029842275,-2527.09,0.00015068,2]
[419238126,1775029842283,-160.0,0.00015071,2]
[419238127,1775029842292,-160.0,0.00015071,2]
[419238128,1775029842302,-160.0,0.00015071,2]
[419238129,1775029842311,-10000.0,0.00015205,2]
[419238130,1775029842320,-426.9,0.00015219,2]
[419238131,1775029842328,-173.41,0.0001529,2]
[419238132,1775029842339,-2000.0,0.00015342,2]
[419238133,1775029842349,-466.88,0.00015471,2]
[419238134,1775029842357,-1969.53,0.00015471,2]
[419238135,1775029842366,-505.0,0.00015684,4]
[419238136,1775029842375,-2527.09,0.00015753,2]
[419238137,1775029842385,-2500.0,0.0001589,2]
[419238138,1775029842394,-662.78323418,0.00016001,2]
[419238139,1775029842403,-8435.23,0.00016173,2]
[419238140,1775029842412,-525.7182,0.000163,27]
[419238141,1775029842421,-2527.09,0.00016438,2]
[419238142,1775029842430,-373.36474817,0.00016438,2]
[419238143,1775029842439,-168.26,0.00016675,2]
[419238144,1775029842448,-157.21,0.00016712,2]
[419238145,1775029842457,-277.71,0.00016804,2]
[419238146,1775029842466,-168.0,0.00017361,2]
[419238147,1775029842476,-675.5934,0.000177,32]
[419238148,1775029842484,-392.94,0.00017728,2]
[419238149,1775029842494,-1313.02,0.00017728,2]
[419238150,1775029842503,-150.54044898,0.00017808,2]
[419238151,1775029842513,-1251.85,0.00018069,2]
[419238152,1775029842522,-2000.0,0.000182,2]
[419238153,1775029842532,-505.0,0.00018256,6]
[419238155,1775029842541,-200.0,0.00018593,2]
[419238156,1775029842551,-1214.29,0.00018611,2]
[419238157,1775029842560,-868.1959,0.000191,37]
[419238158,1775029842569,-1176.73,0.00019153,2]
[419238159,1775029842578,-150.1102686,0.000192,2]
[419238160,1775029842589,-500.0,0.00019479,2]
[419238161,1775029842598,-173.41,0.0001996,2]
[419238162,1775029842607,-150.0,0.0002,2]
[419238163,1775029842617,-150.0,0.0002,2]
[419238164,1775029842626,-500.0,0.0002,2]
[419238165,1775029842635,-200.0,0.0002,2]
[419238166,1775029842644,-825.0,0.0002,30]
[419238167,1775029842653,-297.81404585,0.0002,20]
[419238168,1775029842663,-1115.7068,0.000205,42]
[419238169,1775029842672,-505.0,0.00020829,8]
[419238170,1775029842682,-168.27,0.00020843,2]
[419238171,1775029842691,-501.0,0.00021,2]
[419238172,1775029842702,-300.0,0.00021,2]
[419238173,1775029842711,-500.0,0.00021747,2]
[419238174,1775029842721,-2000.0,0.000219,2]
[419238175,1775029842730,-378.14882799,0.0002193,2]
[419238176,1775029842739,-1000.0,0.00021997,2]
[419238177,1775029842749,-1433.7798,0.00022,47]
[419238178,1775029842758,-390.06055901,0.00022,2]
[419238179,1775029842767,-445.78349602,0.00022,2]
[419238180,1775029842777,-200.0,0.00022,2]
[419238181,1775029842787,-426.0,0.00022,2]
[419238182,1775029842796,-153.0,0.00022,2]
[419238183,1775029842805,-879.0,0.00022,2]
[419238184,1775029842816,-1338.0,0.00022,2]
[419238185,1775029842826,-4385.0,0.00022,2]
[419238186,1775029842836,-1167.0,0.00022,2]
[419238187,1775029842846,-525.0,0.00022,2]
[419238188,1775029842855,-277.71,0.000221,2]
[419238189,1775029842865,-1107.5140027,0.00022221,2]
[419238190,1775029842874,-825.0,0.00022429,30]
[419238191,1775029842883,-150.68680903,0.000225,30]
[419238192,1775029842892,-426.0,0.00023,2]
[419238193,1775029842902,-153.0,0.00023,2]
[419238194,1775029842911,-879.0,0.00023,2]
[419238195,1775029842920,-1338.0,0.00023,2]
[419238196,1775029842930,-4385.0,0.00023,2]
[419238197,1775029842939,-1167.0,0.00023,2]
[419238198,1775029842948,-525.0,0.00023,2]
[419238199,1775029842958,-500.0,0.00023134,2]
[419238200,1775029842967,-1115.0,0.00023309,2]
[419238201,1775029842976,-1842.5311,0.000234,52]
[419238202,1775029842985,-505.0,0.00023402,10]
[419238203,1775029842995,-3493.96897858,0.00023984,120]
[419238204,1775029843005,-180.62462886,0.00023984,120]
[419238205,1775029843014,-426.0,0.00024,2]
[419238206,1775029843024,-153.0,0.00024,2]
[419238207,1775029843034,-879.0,0.00024,2]
[419238208,1775029843044,-1338.0,0.00024,2]
[419238209,1775029843054,-4385.0,0.00024,2]
[419238210,1775029843064,-1167.0,0.00024,2]
[419238211,1775029843074,-525.0,0.00024,2]
[419238212,1775029843083,-1115.0,0.00024536,2]
[419238213,1775029843093,-423.91679296,0.00024626,2]
[419238214,1775029843104,-236.26,0.00024658,2]
[419238215,1775029843114,-1000.0,0.00024658,2]
[419238216,1775029843124,-150.0,0.00024658,2]
[419238217,1775029843135,-858.0,0.00024673,10]
[419238218,1775029843146,-1909.0,0.00024673,10]
[419238219,1775029843156,-500.0,0.00024685,2]
[419238220,1775029843167,-355.78039355,0.00024726,2]
[419238221,1775029843177,-150.71162126,0.00024726,4]
[419238222,1775029843187,-6129.07395549,0.00024726,2]
[419238223,1775029843197,-151.0,0.00024747,7]
[419238224,1775029843207,-2367.8118,0.000248,57]
[419238225,1775029843218,-680.85122316,0.00024816,2]
[419238226,1775029843228,-500.0,0.00024825,2]
[419238227,1775029843237,-500.0,0.00024825,2]
[419238228,1775029843248,-568303.5842724,0.00024826,2]
[419238229,1775029843259,-15224.2708233,0.00024826,2]
[419238230,1775029843269,-825.0,0.00024859,60]
[419238231,1775029843510,-73095.275885,0.000249,2]
[419238232,1775029843520,-173.41,0.00024918,2]
[419238233,1775029843530,-250.0,0.00024986,6]
[419238234,1775029843540,-250.0,0.00024986,6]
[419238235,1775029843549,-358.45,0.00024986,6]
[419238236,1775029843560,-250.0,0.00024986,6]
[419238237,1775029843570,-200.0,0.00024991,2]
[419238238,1775029843580,-200.0,0.00025,2]
[419238239,1775029843590,-500.0,0.00025,2]
[419238240,1775029843600,-200.0,0.00025,2]
[419238241,1775029843611,-2004.9555466,0.00025,2]
[419238242,1775029843621,-426.0,0.00025,2]
[419238243,1775029843631,-154.66442286,0.00025,2]
[419238244,1775029843641,-879.0,0.00025,2]
[419238245,1775029843651,-1338.0,0.00025,2]
[419238246,1775029843661,-4385.0,0.00025,2]
[419238247,1775029843671,-1167.0,0.00025,2]
[419238248,1775029843681,-525.0,0.00025,2]
[419238249,1775029843691,-173.40653029,0.00025205,2]
[419238250,1775029843701,-150.0,0.00025208,2]
[419238251,1775029843711,-201.0,0.00025208,2]
[419238252,1775029843721,-200.0,0.00025241,2]
[419238253,1775029843732,-200.0,0.00025493,2]
[419238254,1775029843743,-2000.0,0.000256,2]
[419238255,1775029843753,-500.0,0.00025699,2]
[419238256,1775029843763,-200.0,0.00025748,2]
[419238257,1775029843772,-158.40003507,0.00025813,52]
[419238258,1775029843782,-1115.0,0.00025828,2]
[419238259,1775029843793,-150.0,0.0002589,2]
[419238260,1775029843803,-505.0,0.00025974,13]
[419238261,1775029843813,-426.0,0.00026,2]
[419238262,1775029843823,-879.0,0.00026,2]
[419238263,1775029843833,-1338.0,0.00026,2]
[419238264,1775029843844,-4385.0,0.00026,2]
[419238265,1775029843854,-1167.0,0.00026,2]
[419238266,1775029843866,-525.0,0.00026,2]
[419238267,1775029843876,-200.0,0.00026006,2]
[419238268,1775029843886,-3042.8429,0.000262,62]
[419238269,1775029843896,-189.23,0.00026246,30]
[419238270,1775029843906,-189.23,0.00026246,30]
[419238271,1775029843915,-189.23,0.00026246,30]
[419238272,1775029843925,-2000.0,0.000265,2]
[419238273,1775029843935,-189.23,0.00026794,30]
[419238274,1775029843945,-189.23,0.00026794,30]
[419238275,1775029843955,-189.23,0.00026794,30]
[419238276,1775029843965,-150.0,0.00026975,2]
[419238277,1775029843976,-150.0,0.00026975,2]
[419238278,1775029843986,-150.0,0.00026975,2]
[419238279,1775029843996,-150.0,0.00026975,2]
[419238280,1775029844007,-150.0,0.00026975,2]
[419238281,1775029844017,-150.22908623,0.00026975,2]
[419238282,1775029844027,-150.0,0.00026975,2]
[419238283,1775029844037,-150.01563451,0.00026975,2]
[419238284,1775029844047,-150.0,0.00026975,2]
[419238285,1775029844057,-800.0,0.00026986,120]
[419238286,1775029844067,-800.0,0.00026986,120]
[419238287,1775029844077,-150.0,0.00027,2]
[419238288,1775029844087,-200.0,0.00027,2]
[419238289,1775029844098,-20000.0,0.00027,2]
[419238290,1775029844108,-200.0,0.00027,3]
[419238291,1775029844119,-426.08733496,0.00027,2]
[419238292,1775029844129,-894.0,0.00027,2]
[419238293,1775029844139,-1341.32774423,0.00027,2]
[419238294,1775029844148,-4398.67305915,0.00027,2]
[419238295,1775029844158,-1168.0,0.00027,2]
[419238296,1775029844167,-540.2014381,0.00027,2]
[419238297,1775029844177,-20976.71790288,0.00027056,2]
[419238298,1775029844186,-200.02,0.0002709,120]
[419238299,1775029844196,-150.0,0.00027185,2]
[419238300,1775029844206,-1115.0,0.00027187,2]
[419238301,1775029844215,-825.0,0.00027288,60]
[419238302,1775029844224,-285.40491142,0.000273,30]
[419238303,1775029844235,-285.40491141,0.000273,30]
[419238304,1775029844244,-189.23,0.00027342,30]
[419238305,1775029844254,-189.23,0.00027342,30]
[419238306,1775029844263,-189.23,0.00027342,30]
[419238307,1775029844273,-6129.07395548,0.00027381,2]
[419238308,1775029844283,-1000.0,0.00027397,120]
[419238309,1775029844293,-300.0,0.00027397,2]
[419238310,1775029844302,-236.26,0.00027397,2]
[419238311,1775029844312,-1000.0,0.00027397,20]
[419238312,1775029844321,-11351.37,0.00027397,10]
[419238313,1775029844331,-9459.47,0.00027397,10]
[419238314,1775029844341,-5459.72526016,0.00027508,30]
[419238315,1775029844350,-3910.3164,0.000276,67]
[419238316,1775029844359,-2000.0,0.000277,2]
[419238317,1775029844368,-1016.0,0.00027897,5]
[419238318,1775029844378,-12612.0,0.00027929,2]
[419238319,1775029844388,-185.14,0.00027998,2]
[419238320,1775029844397,-180.02150181,0.00028028,2]
[419238321,1775029844407,-930.0,0.00028108,7]
[419238322,1775029844417,-450.0,0.00028251,2]
[419238323,1775029844427,-450.0,0.00028251,2]
[419238324,1775029844437,-450.0,0.00028251,2]
[419238325,1775029844447,-450.0,0.00028251,2]
[419238326,1775029844459,-450.0,0.00028251,2]
[419238327,1775029844470,-450.0,0.00028251,2]
[419238328,1775029844481,-450.0,0.00028251,2]
[419238329,1775029844491,-450.0,0.00028251,2]
[419238330,1775029844501,-584.0,0.00028251,2]
[419238331,1775029844510,-930.0,0.00028382,7]
[419238332,1775029844520,-150.0,0.00028474,7]
[419238333,1775029844530,-150.0,0.00028544,2]
[419238334,1775029844541,-1115.0,0.00028546,5]
[419238335,1775029844551,-505.0,0.00028547,15]
[419238336,1775029844560,-15224.2708233,0.00028589,2]
[419238337,1775029844570,-185.14,0.00028599,2]
[419238338,1775029844580,-568303.5842724,0.00028614,2]
[419238339,1775029844590,-930.0,0.00028656,7]
[419238340,1775029844599,-189.23,0.00028712,30]
[419238341,1775029844609,-189.23,0.00028712,30]
[419238342,1775029844618,-189.23,0.00028712,30]
[419238343,1775029844627,-170.03,0.00028767,2]
[419238344,1775029844637,-897.08,0.0002893,7]
[419238345,1775029844647,-1754.74264419,0.00029,2]
[419238346,1775029844656,-500.0,0.00029031,2]
[419238347,1775029844666,-5025.0947,0.000291,72]
[419238348,1775029844676,-185.14,0.00029199,2]
[419238349,1775029844685,-2000.0,0.000293,2]
[419238350,1775029844694,-825.0,0.00029717,60]
[419238351,1775029844704,-20976.71790288,0.00029728,2]
[419238352,1775029844713,-250.0,0.0002979,14]
[419238353,1775029844723,-2000.0,0.000298,2]
[419238354,1775029844733,-30000.0,0.00029811,2]
[419238355,1775029844743,-150.0,0.00029971,2]
[419238356,1775029844753,-264.08018043,0.00029973,7]
[419238357,1775029844763,-150.0,0.00029973,7]
[419238358,1775029844772,-150.0,0.00029973,7]
[419238359,1775029844782,-150.0,0.00029973,7]
[419238360,1775029844792,-150.69192865,0.00029973,7]
[419238361,1775029844802,-150.0,0.00029973,7]
[419238362,1775029844811,-1115.0,0.00029974,5]
[419238363,1775029844821,-151.0,0.00029996,7]
[419238364,1775029844830,-90558.55326539,0.00029999,120]
[419238368,1775029846718,-500.0,0.0001,2]
[419238369,1775029846729,-150.0,0.00013699,2]